{"text_format":"3","workbook":"xlsx","n_sheets":1,"sheets":["Tensiune arterială și glicemie"],"not_rendered":{"defined_names":9},"read":"whole","date_system":"1900"}

{"sheet":"Tensiune arterială și glicemie","index":0,"n_rows":13,"n_cols":11,"rows_kept":13,"merged":[[0,1,4,3],[0,4,0,9],[1,4,1,6],[1,7,1,9]]}
[null,"Aparat de monitorizare \na tensiunii arteriale și \na glicemiei",null,null,"Particularizați valorile de scală din celulele E2-J5 de mai jos."]
[{"$nulls":4},"TENSIUNE ARTERIALĂ",null,null,"SCALĂ GLICEMIE"]
[{"$nulls":4},120,"SISTOLICĂ",140,70,100,150]
[{"$nulls":4},80,"DIASTOLICĂ",90,"SCĂZUTĂ","NORMALĂ","MARE"]
[{"$nulls":4},"TENSIUNEA ȚINTĂ",null,"APELAȚI UN MEDIC"]
[null,"Dată","Oră","Eveniment","Sistolică","Diastolică","Puls","Glicemie","Nivel","Stare","Note"]
[null,{"$f":"TODAY()","v":"2022-08-02"},"06:00:00","Trezire",129,79,72,55,{"$f":"TensiuneArterialăȘiGlicemie[[#This Row],[Glicemie]]","v":55},{"$f":"IFERROR(IF(TensiuneArterialăȘiGlicemie[[#This Row],[Nivel]]=0,\"\",IF(TensiuneArterialăȘiGlicemie[[#This Row],[Nivel]]<=GLow,\"SCĂZUTĂ\",IF(AND(TensiuneArterialăȘiGlicemie[[#This Row],[Nivel]]>GLow,TensiuneArterialăȘiGlicemie[[#This Row],[Nivel]]<GHigh),\"NORMALĂ\",\"MARE\"))), \"\")","v":"SCĂZUTĂ"}]
[null,{"$f":"TODAY()","v":"2022-08-02"},"07:00:00","Înainte de masă",120,80,74,70,{"$f":"TensiuneArterialăȘiGlicemie[[#This Row],[Glicemie]]","v":70},{"$f":"IFERROR(IF(TensiuneArterialăȘiGlicemie[[#This Row],[Nivel]]=0,\"\",IF(TensiuneArterialăȘiGlicemie[[#This Row],[Nivel]]<=GLow,\"SCĂZUTĂ\",IF(AND(TensiuneArterialăȘiGlicemie[[#This Row],[Nivel]]>GLow,TensiuneArterialăȘiGlicemie[[#This Row],[Nivel]]<GHigh),\"NORMALĂ\",\"MARE\"))), \"\")","v":"SCĂZUTĂ"}]
[null,"2022-08-02","09:00:00","După masă",133,80,75,75,{"$f":"TensiuneArterialăȘiGlicemie[[#This Row],[Glicemie]]","v":75},{"$f":"IFERROR(IF(TensiuneArterialăȘiGlicemie[[#This Row],[Nivel]]=0,\"\",IF(TensiuneArterialăȘiGlicemie[[#This Row],[Nivel]]<=GLow,\"SCĂZUTĂ\",IF(AND(TensiuneArterialăȘiGlicemie[[#This Row],[Nivel]]>GLow,TensiuneArterialăȘiGlicemie[[#This Row],[Nivel]]<GHigh),\"NORMALĂ\",\"MARE\"))), \"\")","v":"NORMALĂ"}]
[null,"2022-08-02","10:00:00","Numai tensiune arterială",143,91,75,190,{"$f":"TensiuneArterialăȘiGlicemie[[#This Row],[Glicemie]]","v":190},{"$f":"IFERROR(IF(TensiuneArterialăȘiGlicemie[[#This Row],[Nivel]]=0,\"\",IF(TensiuneArterialăȘiGlicemie[[#This Row],[Nivel]]<=GLow,\"SCĂZUTĂ\",IF(AND(TensiuneArterialăȘiGlicemie[[#This Row],[Nivel]]>GLow,TensiuneArterialăȘiGlicemie[[#This Row],[Nivel]]<GHigh),\"NORMALĂ\",\"MARE\"))), \"\")","v":"MARE"}]
[null,"2022-08-02","12:00:00","Înainte de masă",141,84,70,140,{"$f":"TensiuneArterialăȘiGlicemie[[#This Row],[Glicemie]]","v":140},{"$f":"IFERROR(IF(TensiuneArterialăȘiGlicemie[[#This Row],[Nivel]]=0,\"\",IF(TensiuneArterialăȘiGlicemie[[#This Row],[Nivel]]<=GLow,\"SCĂZUTĂ\",IF(AND(TensiuneArterialăȘiGlicemie[[#This Row],[Nivel]]>GLow,TensiuneArterialăȘiGlicemie[[#This Row],[Nivel]]<GHigh),\"NORMALĂ\",\"MARE\"))), \"\")","v":"NORMALĂ"}]
[null,{"$f":"TODAY()","v":"2022-08-02"},"15:00:00","După masă",132,80,68,90,{"$f":"TensiuneArterialăȘiGlicemie[[#This Row],[Glicemie]]","v":90},{"$f":"IFERROR(IF(TensiuneArterialăȘiGlicemie[[#This Row],[Nivel]]=0,\"\",IF(TensiuneArterialăȘiGlicemie[[#This Row],[Nivel]]<=GLow,\"SCĂZUTĂ\",IF(AND(TensiuneArterialăȘiGlicemie[[#This Row],[Nivel]]>GLow,TensiuneArterialăȘiGlicemie[[#This Row],[Nivel]]<GHigh),\"NORMALĂ\",\"MARE\"))), \"\")","v":"NORMALĂ"},"Am luat medicamentele pentru tensiunea arterială în timpul mesei"]
[null,"Medii",null,null,{"$f":"SUBTOTAL(101,TensiuneArterialăȘiGlicemie[Sistolică])","v":133},{"$f":"SUBTOTAL(101,TensiuneArterialăȘiGlicemie[Diastolică])","v":{"v":82.33333333333333,"d":"82"}},{"$f":"SUBTOTAL(101,TensiuneArterialăȘiGlicemie[Puls])","v":{"v":72.33333333333333,"d":"72"}},{"$f":"SUBTOTAL(101,TensiuneArterialăȘiGlicemie[Glicemie])","v":{"v":103.33333333333333,"d":"103"}}]